Cogmind - Beta 17 @@@ ROGUE MODE // 2026.07.19 @ 10:02:39 Player: winnking222 Result: Destroyed by S-10 Pest with Light Assault Rifle Performance ------------- Evolutions (0) 0 Regions Visited (2) 400 Robots Destroyed (36) 180 Value Destroyed (733) 733 Prototype IDs (15) 300 Alien Tech Used (0) 0 Bonus (0) 0 TOTAL SCORE: 1613 Bonus ------- None Cogmind --------- Core Integrity 0/250 Matter 34/300 Energy 193/200 System Corruption 0% Temperature Cool (0) Movement Rolling (120) Ox2 Location -10/Subcaves Parts ------- > --- POWER (1) -------- Subdweller Power Source > --- PROPULSION (2) --- Armored Wheel Armored Wheel > --- UTILITY (2) ------ High-capacity Storage Unit Subdweller Optics > --- WEAPON (2) ------- Subdweller Machine Gun Subdweller Machine Gun > --- INVENTORY (20) --- Armored Wheel Armored Wheel Subdweller Monowheel Subdweller Monowheel Flight Unit Flight Unit Improved Flight Unit Improved Flight Unit Improved Flight Unit Improved Flight Unit Large Storage Unit High-capacity Matter Pod (49) Subdweller Optics Rainbow Chip Subdweller Beam Cannon Autogun Autogun Autogun Autogun Mini Grenade Launcher Peak State ------------ > --- POWER ------------ Subdweller Power Source > --- PROPULSION ------- Armored Wheel Armored Wheel > --- UTILITY ---------- High-capacity Storage Unit Subdweller Optics > --- WEAPON ----------- Autogun Subdweller Machine Gun > --- INVENTORY -------- Ion Engine Armored Wheel Armored Wheel Subdweller Monowheel Subdweller Monowheel Flight Unit Flight Unit Improved Flight Unit Improved Flight Unit Improved Flight Unit Improved Flight Unit Large Storage Unit High-capacity Matter Pod Subdweller Optics Rainbow Chip Subdweller Beam Cannon Autogun Autogun Autogun Mini Grenade Launcher [Rating: 18] Favorites ----------- Power Light Ion Engine Engine Light Ion Engine Propulsion Light Treads Treads Light Treads Wheel Armored Wheel Flight Unit Improved Flight Unit Utility High-capacity Storage Unit Device Seismic Detector Storage High-capacity Storage Unit Weapon Improved Light Cannon Energy Gun Medium Laser Ballistic Gun Autogun Ballistic Cannon Improved Light Cannon Launcher Mini Grenade Launcher Build | -11 -10 -10 ------- Run | Yrd Mat Sub Slots Evolved . | . . . Power . | . . . Propulsion . | . . . Utility . | . . . Weapon . | . . . Parts Attached 26 | 7 7 12 Power 3 | 1 . 2 Engine 3 | 1 . 2 Core . | . . . Reactor . | . . . Propulsion 6 | 2 1 3 Treads 3 | 2 . 1 Leg . | . . . Wheel 2 | . . 2 Hover . | . . . Flight 1 | . 1 . Utility 7 | 2 3 2 Device 4 | 1 1 2 Storage 3 | 1 2 . Processor . | . . . Hackware . | . . . Protection . | . . . Artifact . | . . . Weapon 10 | 2 3 5 Energy Gun 1 | 1 . . Energy Cannon . | . . . Ballistic Gun 6 | 1 1 4 Ballistic Cannon 2 | . 2 . Launcher 1 | . . 1 Special Weapon . | . . . Impact Weapon . | . . . Slashing Weapon . | . . . Piercing Weapon . | . . . Special Melee Weapon . | . . . Unidentified Prototypes 1 | . 1 . Parts Lost 2 | . . 2 Power . | . . . Propulsion 1 | . . 1 Utility 1 | . . 1 Weapon . | . . . Highest Loss Streak 1 | . . 1 To Critical Strikes . | . . . Average Backups 16 | 5 15 18 Power . | . 1 . Propulsion 8 | 3 7 9 Utility 1 | . . 3 Weapon 5 | 1 5 5 Tool/Special . | . . . Unused Backups 20 | . 5 15 Power . | . . . Propulsion 13 | . 4 9 Utility 3 | . . 3 Weapon 4 | . 1 3 Tool/Special . | . . . Average Slot Usage (%) 99 | . 99 99 Engine 14 | . 14 14 Treads 23 | . 27 19 Wheel 4 | . . 8 Device 13 | . 14 13 Storage 14 | . 14 14 Energy Gun 1 | . 2 . Ballistic Gun 13 | . 3 23 Ballistic Cannon 13 | . 22 4 Peak Build Rating 18 | 7 12 18 Average Rating 12 | 5 11 14 On Entrance 6 | . 7 12 Avg Prop Armor Cover (%) 9 | . 9 . Naked Turns . | . . . Heaviest Build 54 | 13 52 54 Greatest Support 40 | 40 40 40 Greatest Overweight (x) 4 | 2 4 2 Average Overweight (x) 1 | . . 1 Largest Inventory Capacity 20 | 8 20 20 Average Capacity 17 | 7 16 20 Most Carried 20 | 8 18 20 Average Carried 16 | 5 15 18 Final Capacity 20 | 8 20 20 Final Carried 20 | 7 18 20 Class Distribution -------------------- 100% | Mutant Dominant Class ---------------- Mutant | -10/Materials Mutant | -10/Subcaves Resources | -11 -10 -10 ----------- Run | Yrd Mat Sub Matter Collected 1011 | 318 483 210 Remotely . | . . . Salvage Created 733 | 214 315 204 Parts 70 | 26 18 26 Haulers Intercepted . | . . . Recyclers Shooed . | . . . Parts Field Recycled . | . . . Retrieved Matter . | . . . Parts Self-Destructed 13 | . . 13 Prevented . | . . . Parts Restored . | . . . Kills | -11 -10 -10 ------- Run | Yrd Mat Sub Combat Hostiles Destroyed 21 | . 9 12 Guns 9 | . 2 7 Cannons 12 | . 7 5 Classes Destroyed 7 | 3 3 1 Worker 3 | 1 2 . Tunneler 8 | 8 . . Recycler 2 | 1 1 . Watcher 2 | . 2 . Swarmer 7 | . 3 4 Grunt 6 | . 6 . Subdweller 8 | . . 8 Best Kill Streak 5 | 5 5 3 Combat Bots Only 3 | . 3 3 Max Kills in Single Turn 2 | 1 2 2 Gunslinging 1 | . . 1 Exploded . | . . . Melee . | . . . Uniques/NPCs Destroyed . | . . . Combat | -11 -10 -10 -------- Run | Yrd Mat Sub Hostile Shots Fired 106 | . 45 61 Missed 29 | . 12 17 Hits 77 | . 33 44 Projectile 77 | . 33 44 Critical Strikes 2 | . 1 1 Damage Taken 1177 | . 382 795 Core 253 | . 54 199 Absorbed by Shields . | . . . Core Remaining (%) 100 | 100 . . Volleys Fired 118 | 16 48 54 Largest 2 | 2 2 2 Hottest 70 | 70 70 66 Shots Fired 232 | 32 96 104 Gun 122 | 32 20 70 Cannon 106 | . 76 30 Launcher 4 | . . 4 Special . | . . . Kinetic 202 | 16 86 100 Thermal 26 | 16 10 . Explosive 4 | . . 4 Electromagnetic . | . . . Robot Hit Streak 12 | 8 5 12 Robot Miss Streak 4 | 4 4 4 Penetration Max . | . . . Secondary Targets 3 | . 1 2 Max Gunslinging Chain 1 | . 1 1 Shots Hit Robots 108 | 18 44 46 Core Hits 44 | 10 17 17 Critical Kills . | . . . Critical Parts Destroyed . | . . . Critical Strikes 3 | 1 1 1 Burn 2 | 1 1 . Blast 1 | . . 1 Melee Attacks . | . . . Impact . | . . . Slashing . | . . . Piercing . | . . . Sneak Attacks . | . . . Combat Hostiles . | . . . Follow-up Attacks . | . . . Damage Inflicted 1983 | 246 792 945 Guns 824 | 246 160 418 Cannons 1158 | . 632 526 Explosions 1 | . . 1 Melee . | . . . Ramming . | . . . Kinetic 1795 | 133 718 944 Thermal 187 | 113 74 . Explosive 1 | . . 1 Electromagnetic . | . . . Impact . | . . . Slashing . | . . . Piercing . | . . . Highest Corruption . | . . . Average Corruption . | . . . Corruption Purged . | . . . Corruption Blocked . | . . . Overload Shots . | . . . Overflow Damage 15 | . 15 . Projectiles 15 | . 15 . Explosions . | . . . Melee . | . . . Knockbacks 11 | . 11 . Impact . | . . . Kinetic 11 | . 11 . Secondary . | . . . Self-Inflicted Damage 28 | . . 28 Shots 1 | . . 1 Rammed . | . . . Targets Rammed . | . . . Kicked . | . . . Crushed . | . . . Highest Temperature 207 | 81 207 . Average Temperature 37 | 34 38 . Received Heat Transfer 237 | . 198 39 Effects 1 | . 1 . Interference 1 | . 1 . Siege Activations . | . . . Martial Activations . | . . . Shielding Activations . | . . . Robots Disrupted . | . . . Combat Hostiles . | . . . Robots Corrupted . | . . . Combat Hostiles . | . . . Parts Fried . | . . . Impact Corruptions . | . . . Robots Melted . | . . . Combat Hostiles . | . . . Parts Melted 1 | 1 . . Heat Transferred 703 | 407 296 . Parts Sabotaged . | . . . Parts Stolen . | . . . Parts Stripped . | . . . Power Chain Reactions . | . . . Alert | -11 -10 -10 ------- Run | Yrd Mat Sub Maximum Alert Level . | . . . Low Security (%) 100 | 100 100 . Level 1 . | . . . Level 2 . | . . . Level 3 . | . . . Level 4 . | . . . Level 5 . | . . . High Security . | . . . Max Security . | . . . Peak Influence 83 | 15 83 . Initial . | . . . Average 17 | 2 19 . Influence Increases 496 | 50 311 135 Destroy 0b10 Robot/C 260 | . 180 80 Destroy 0b10 Robot/NC 75 | 50 25 . Destroy Leader 64 | . 54 10 Successful Hack 16 | . 16 . Disable Machine 15 | . 15 . Destroy Structure 6 | . 6 . Lose Combat Pursuer 60 | . 15 45 Influence Decreases 431 | 50 311 70 Time Decay 431 | 50 311 70 Squads Dispatched 3 | . 3 . Investigation 1 | . 1 . Extermination . | . . . Reinforcement 2 | . 2 . Assault . | . . . Garrison . | . . . Intercept . | . . . Searches Triggered . | . . . Construction Impeded . | . . . Haulers Reinforced . | . . . Active Scanning Responses . | . . . Cargo Convoy Interrupts . | . . . Stealth | -11 -10 -10 --------- Run | Yrd Mat Sub Distress Signals 1 | . 1 . Communications Jammed . | . . . Distress Signals . | . . . Times Spotted 30 | . 16 14 Peak Tracking Total 6 | . 4 6 Tactical Retreats 3 | . 1 2 Traps | -11 -10 -10 ------- Run | Yrd Mat Sub Traps Triggered 2 | . 2 . Indirectly . | . . . Trap Hack Attempts . | . . . Triggered . | . . . Disarmed . | . . . Reprogrammed . | . . . Reused . | . . . Traps Extracted . | . . . Installed . | . . . Triggered . | . . . Machines | -11 -10 -10 ---------- Run | Yrd Mat Sub Machines Disabled 1 | . 1 . Max in Single Turn 1 | . 1 . Machines Repaired . | . . . Machines Dismantled . | . . . Machines Sabotaged . | . . . Overloaded Fab Kills . | . . . Hacking | -11 -10 -10 --------- Run | Yrd Mat Sub Machines Accessed 7 | . 5 2 Terminals 5 | . 5 . Fabricators . | . . . Repair Stations . | . . . Recycling Units . | . . . Scanalyzers . | . . . Garrison Access . | . . . Total Hacks 15 | . 10 5 Successful 12 | . 7 5 Failed 3 | . 3 . Catastrophic . | . . . Database Lockouts . | . . . Manual 10 | . 10 . Terminals 10 | . 10 . Fabricators . | . . . Repair Stations . | . . . Recycling Units . | . . . Scanalyzers . | . . . Garrison Access . | . . . Terminal Hacks 5 | . . 5 Record 4 | . . 4 Proto ID Catalog 1 | . . 1 Fabricator Hacks . | . . . Repair Station Hacks . | . . . Recycling Unit Hacks . | . . . Scanalyzer . | . . . Garrison Access Hacks . | . . . Unauthorized Hacks 7 | . 7 . Terminals 7 | . 7 . Botnet 3 | . 3 . Skim 4 | . 4 . Fabricators . | . . . Repair Stations . | . . . Recycling Units . | . . . Scanalyzers . | . . . Garrison Access . | . . . Data Cores Recovered . | . . . Used . | . . . Hacking Detections 4 | . 4 . Full Trace Events 1 | . 1 . Feedback Events . | . . . Feedback Blocked . | . . . Robot Schematics Acquired . | . . . Robots Built . | . . . Authchips . | . . . Time . | . . . Total Robot Build Rating . | . . . Part Schematics Acquired . | . . . Parts Built . | . . . Authchips . | . . . Time . | . . . Total Part Build Rating . | . . . Part Studies Acquired . | . . . Parts Repaired . | . . . Time . | . . . Parts Recycled . | . . . Recycled Matter . | . . . Retrieved Matter . | . . . Retrieved Components . | . . . Parts Scanalyzed . | . . . Part Schematics Acquired . | . . . Parts Damaged . | . . . Bothacking | -11 -10 -10 ------------ Run | Yrd Mat Sub Used RIF Installer . | . . . Robots Hacked . | . . . Non-combat . | . . . Combat . | . . . Robot Hacks Applied . | . . . Relay Couplers Released . | . . . Fabnet Peak Effective % . | . . . Robots Rewired . | . . . Allies Hacked . | . . . Hacks Repelled . | . . . Allies | -11 -10 -10 -------- Run | Yrd Mat Sub Total Allies . | . . . Largest Group . | . . . Highest-Rated Group . | . . . Highest-Rated Ally . | . . . Total Orders . | . . . Ally Attacks . | . . . Total Damage . | . . . Kills . | . . . Allies Corrupted . | . . . Allies Melted . | . . . Intel | -11 -10 -10 ------- Run | Yrd Mat Sub Active Infowar (turns) 3159 | 18 1658 1483 Optics 1255 | . . 1255 Seismic 1904 | 18 1658 228 Robot Analysis Total . | . . . Derelict Logs Recovered . | . . . Drone Launches . | . . . Drone Recoveries . | . . . Exploration | -11 -10 -10 ------------- Run | Yrd Mat Sub Turns Passed 3607 | 251 1658 1698 Spaces Moved 1516 | 104 632 780 Core 18 | 17 1 . Treads 1131 | 87 631 413 Legs . | . . . Wheels 367 | . . 367 Hover . | . . . Flight . | . . . Fastest Speed 50 | 50 160 120 Average Speed 193 | 145 212 183 Slowest Speed 250 | 160 250 240 Overloaded Moves . | . . . Propulsion Burnouts . | . . . Robots Hopped . | . . . Potential Cave-ins . | . . . Cave-ins Triggered . | . . . Exploration Rate (%) 50 | 5 94 51 Regions Visited 2 Branch Regions 1 Pre-discovered Areas 1 | . . 1 Known Exits Taken . | . . . Unknown Exits Taken 2 | 1 1 . Scrap Searched . | . . . Spaces Dug 2 | . 2 . Terrain Destroyed 47 | . 4 43 Melee . | . . . Projectile 5 | . 4 1 AOE 42 | . . 42 Terrain Rammed . | . . . Walls Destroyed . | . . . Machines Disabled . | . . . Actions | -11 -10 -10 --------- Run | Yrd Mat Sub Total 1975 | 171 854 950 Wait 249 | 31 132 86 Move 1514 | 103 631 780 Hop . | . . . Pick Up 46 | 14 21 11 Fast Attach 2 | . 2 . Attach 17 | 7 4 6 Detach . | . . . Swap 10 | . 4 6 Drop 19 | . 12 7 Fire 118 | 16 48 54 Melee . | . . . Ram . | . . . Kick . | . . . Crush . | . . . Escape Stasis . | . . . Rewire . | . . . Trap . | . . . Miscellaneous . | . . . Route ------- -11/Scrapyard -10/Materials (discovered 6 exits: [*Mat x3] / [*Min x2] / *Sub) -10/Subcaves (discovered 3 exits: *Mat x2 / *Rec) History --------- Turn | Location | Event 10 | -11/Scrapyard | Discovered new exit (range 16) 252 | -11/Scrapyard | Entered Materials 321 | -10/Materials | Build established: Mutant 482 | -10/Materials | Discovered new exit (range 10) 582 | -10/Materials | Discovered new exit (range 16) 703 | -10/Materials | Discovered new exit (range 7) 752 | -10/Materials | Derelicts attacked the area 857 | -10/Materials | Discovered new exit (range 11) 1274 | -10/Materials | Discovered new exit (range 13) 1596 | -10/Materials | Discovered new exit (range 3) 1910 | -10/Materials | Entered Subcaves 1911 | -10/Subcaves | Approached by a straggling Scientist 2014 | -10/Subcaves | A Subdweller sparked back to life 2014 | -10/Subcaves | A Subdweller sparked back to life 2014 | -10/Subcaves | A Subdweller sparked back to life 2064 | -10/Subcaves | Found Prototype Processor 2145 | -10/Subcaves | Core integrity fell below 50% 2304 | -10/Subcaves | Visited 4L-MR0's lab 2315 | -10/Subcaves | Identified Rainbow Chip 2823 | -10/Subcaves | Visited Clippyterm 2830 | -10/Subcaves | Identified exit to Recycling 2830 | -10/Subcaves | Identified exit to Materials 2830 | -10/Subcaves | Learned location of Extension (-6) 3078 | -10/Subcaves | Shifting Twisted Machinery released Sub. Optics 3232 | -10/Subcaves | A swath of the cavern ceiling suddenly collapsed 3431 | -10/Subcaves | A swath of the cavern ceiling suddenly collapsed 3497 | -10/Subcaves | Shifting Twisted Machinery released Shrapnel Trap 3546 | -10/Subcaves | Core integrity fell below 20% 3594 | -10/Subcaves | Ambushed by Subdweller buried in earth 3608 | -10/Subcaves | Destroyed by S-10 Pest with Light Assault Rifle Last Messages --------------- 03490_ Dropped Imp. Light Cannon. 03492_ Acquired Sub. Power Source. 03495_ Subatomizers dissect the Disposable Heat Sink. Shrapnel Trap falls loose from the Twisted Machinery. 03507_ Subatomizers dissect the Disposable Heat Sink. 03542_ Destroyed Scrap Shield. 03545_ V8-6MB(R) destroyed. 03555_ Acquired 24 matter. 03559_ Dropped Ion Engine. 03559_ Acquired Sub. Machine Gun. 03594_ S-10 Pest springs to life. 03595_ XG-ASV(R): "GOODGOOD!" 03599_ The unstable cave ceiling collapses. 03600_ S-10 Pest destroyed. 03600_ Switching to secondary target: XG-ASV(R). 03603_ XG-ASV(R) destroyed. 03604_ Flight Unit fries itself beyond repair. Map ----- +----------------------------------------------------+ | ????????????????????????????????????#######??????? | | ????????????????????????????????????#"""""#??????? | | ????????????????????????????????????#""X""#??????? | | ????????????????????????????????????#" "#??????? | | ????????????????????????????????????### ###??????? | | ????????????????????????????????????### ##???????? | | ?????????##########?????????????????# ######??? | | ????????## ####??????????????# ##?? | | ????????# #######?###?#### ##? | | ????????# ## ### ### ## | | ????????# # | | ????????## ## | | ??????????????## ### # | | ???????????????# ### #### | | ????###???????## ##### ## | | ??## ###?????# ## ##### ##### | | ?## #????## ########???####???? | | ?# #?????# ## ####?????????????????? | | ## #??###?# ######???????????????????? | | # ##?## ### #?## ##??????????????????? | | ##??# ### #?# #??????????????????? | | ##??# ### ##?# #??????????????????? | | ##?# ### #?## #??????????????????? | | ### ## ### # #????????????????? | | ## & ###??????????????? | | @ !%= #??????????????? | | ##### s* #??????????????? | | #???#### #????????????? | | #??????## ## % #????????????? | | ????????# # #### [ #????????????? | | ????????## ###??##### #?????####??## | | ????????# #????????## ## # ##????## ### | | ????????# ##?????????# ##?#####>#?????# | | ??###???# ###??####?# ##?????? ""?????# | | ?## #??# #### ### #???????" ?????# | | ## ### ## #???????? "?????# | | # " "" ##???????? ????## | | ?# "" #?????????? ????# | | ??# "" #????????????#### ### | | ######### ##????#?????## ## ???## | | """#????# ### #????# ????# #???### | | """"#???# ### #????# ????# ##?## | | """""#### ## ##???## ???# ### | | ?#""""#"# ### ### ###????# ????# ## | | ??# """ #?#* #######??????# ???# ## | | ??## " = #?#& #???????##??# ???# ### | | ???## ##?# #####???## ##?# ??## ###?? | | ????#### ##?## ## ##??# ##?# #?## #???? | | ??"??"## #??# #??? ### ## ##### | | ?####"## #??## #???# ### ## | +----------------------------------------------------+ Best States ------------- Heat Dissipation 25 Energy Generation 10 Energy Capacity 250 Matter Stores 300 Matter Capacity 300 Sight Range 21 Terrain Scan Density 10 Evasion (%) 40 Recoil Reduction 2 Item Schematics ----------------- None Robot Schematics ------------------ None Fabricated ------------ Nothing Repaired ---------- Nothing Studied --------- None Alien Tech Used ----------------- None Achievements -------------- None Challenges ------------ None Game ------ Seed WardroneEfficiencyPenetrator Manual? 0 Play Time 00:14:33 Cumulative 207.9 hours Start 2026.07.19 @ 09:24:47 End 2026.07.19 @ 10:02:39 Sessions 1 Manual Loads 0 Difficulty Rogue Special Mode None Game No. 294 Rogue 294 Adventurer 0 Explorer 0 Win Type - Total 3 Types 2/0/0/1/0/0/0/0/0/0 Lore% 74 Gallery% 69 Achievement% 56 Wizard Run 0 Options --------- Layout 1 ASCII 0 Keyboard 0 Movement Mouse Keybinds 0 Fullscreen 1 Font 24/Smallcaps Map View 50x35 Zoom Use 0% Tactical HUD 1 Map Filters NONE Filters NONE Steam 1 RUN: 7fe12cf8-85a6-484f-8f30-41fb6f370b84